{"text_format":"1","workbook":"xlsx","n_sheets":5,"sheets":["Регистриция","Кроссворд","Анализ","Ответы","Результат"],"not_rendered":{"charts":0,"images":15,"macros":1,"external_links":0,"defined_names":0,"comments":1,"pivot_tables":0},"unopened":[],"bounds":{"document_bytes":16777216,"sheet_cells":100000,"rows_first":2000,"rows_last":500,"rows_between":2000,"halvings":0,"cell_chars":16384,"cell_head_chars":4096},"cells_cut":0,"cells_raw":0,"read":"whole","date_system":"1900"}

{"sheet":"Регистриция","index":0,"n_rows":14,"n_cols":8,"rows_kept":14,"cut":false,"hidden":false,"merged":[]}
[]
[]
[]
[]
[]
[]
[]
[]
[]
[]
[]
[]
[null,null,null,null,null,null,null,"Name"]
[null,null,null,null,null,null,null,"Class"]

{"sheet":"Кроссворд","index":1,"n_rows":0,"n_cols":0,"rows_kept":0,"cut":false,"hidden":false,"merged":[]}

{"sheet":"Анализ","index":2,"n_rows":15,"n_cols":7,"rows_kept":15,"cut":false,"hidden":true,"merged":[]}
[null,null,"ОТВЕТ УЧАСТНИКА","ПРАВИЛЬНЫЙ ОТВЕТ","АНАЛИЗ","Результат ","оценка"]
[null,1,{"$f":"CONCATENATE(Кроссворд!N6,Кроссворд!O6,Кроссворд!P6,Кроссворд!Q6,Кроссворд!R6)","v":""},"tulip",{"$f":"IF(C2=D2,1,0)","v":0},{"$f":"SUM(E2:E15)","v":0},{"$f":"IF(F2>=13,5,IF(F2>=10,4,IF(F2>=7,\"Good!\",\"Try again)\")))","v":"Try again)"}]
[null,2,{"$f":"CONCATENATE(Кроссворд!R6,Кроссворд!R7,Кроссворд!R8,Кроссворд!R9,Кроссворд!R10)","v":""},"peony",{"$f":"IF(C3=D3,1,0)","v":0}]
[null,3,{"$f":"CONCATENATE(Кроссворд!P8,Кроссворд!P9,Кроссворд!P10,Кроссворд!P11,Кроссворд!P12,Кроссворд!P13)","v":""},"violet",{"$f":"IF(C4=D4,1,0)","v":0}]
[null,4,{"$f":"CONCATENATE(Кроссворд!L7,Кроссворд!L8,Кроссворд!L9,Кроссворд!L10,Кроссворд!L11,Кроссворд!L12,Кроссворд!L13,Кроссворд!L14)","v":""},"harebell",0]
[null,5,{"$f":"CONCATENATE(Кроссворд!J9,Кроссворд!K9,Кроссворд!L9,Кроссворд!M9,Кроссворд!N9,Кроссворд!O9,Кроссворд!P9,Кроссворд!Q9,Кроссворд!R9)","v":""},"carnation",0]
[null,6,{"$f":"CONCATENATE(Кроссворд!E12,Кроссворд!F12,Кроссворд!G12,Кроссворд!H12,Кроссворд!I12,Кроссворд!J12,Кроссворд!K12,Кроссворд!L12,Кроссворд!M12,)","v":""},"sunflower",0]
[null,7,{"$f":"CONCATENATE(Кроссворд!H9,Кроссворд!H10,Кроссворд!H11,Кроссворд!H12,Кроссворд!H13,Кроссворд!H14,Кроссворд!H15,Кроссворд!H16)","v":""},"daffodil",0]
[null,8,{"$f":"CONCATENATE(Кроссворд!C10,Кроссворд!D10,Кроссворд!E10,Кроссворд!F10,Кроссворд!G10,Кроссворд!H10)","v":""},"mimosa",{"$f":"IF(C9=D9,1,0)","v":0}]
[null,9,{"$f":"CONCATENATE(Кроссворд!C7,Кроссворд!C8,Кроссворд!C9,Кроссворд!C10,Кроссворд!C11,Кроссворд!C12,Кроссворд!C13,Кроссворд!C14,Кроссворд!C15)","v":""},"chamomile",0]
[null,10,{"$f":"CONCATENATE(Кроссворд!J11,Кроссворд!J12,Кроссворд!J13,Кроссворд!J14,Кроссворд!J15,Кроссворд!J16,Кроссворд!J17,Кроссворд!J18,Кроссворд!J19,Кроссворд!J20,Кроссворд!J22)","v":""},"cornflower",0]
[null,11,{"$f":"CONCATENATE(Кроссворд!H16,Кроссворд!I16,Кроссворд!J16,Кроссворд!K16,Кроссворд!L16)","v":""},"lilia",0]
[null,12,{"$f":"CONCATENATE(Кроссворд!L16,Кроссворд!L17,Кроссворд!L18,Кроссворд!L19,Кроссворд!L20)","v":""},"aster",0]
[null,13,{"$f":"CONCATENATE(Кроссворд!G19,Кроссворд!H19,Кроссворд!I19,Кроссворд!J19)","v":""},"rose",0]
[null,14,{"$f":"CONCATENATE(Кроссворд!H18,Кроссворд!H19,Кроссворд!H20,Кроссворд!H21,Кроссворд!H22)","v":""},"poppy",0]

{"sheet":"Ответы","index":3,"n_rows":19,"n_cols":17,"rows_kept":19,"cut":false,"hidden":true,"merged":[]}
[]
[]
[null,null,null,null,null,null,null,null,null,null,null,null,"t","u","l","i","p"]
[null,"c",null,null,null,null,null,null,null,null,"h",null,null,null,null,null,"e"]
[null,"h",null,null,null,null,null,null,null,null,"a",null,null,null,"v",null,"o"]
[null,"a",null,null,null,null,"d",null,"c","a","r","n","a","t","i","o","n"]
[null,"m","i","m","o","s","a",null,null,null,"e",null,null,null,"o",null,"y"]
[null,"o",null,null,null,null,"f",null,"c",null,"b",null,null,null,"l"]
[null,"m",null,"s","u","n","f","l","o","w","e","r",null,null,"e"]
[null,"i",null,null,null,null,"o",null,"r",null,"l",null,null,null,"t"]
[null,"l",null,null,null,null,"d",null,"n",null,"l"]
[null,"e",null,null,null,null,"i",null,"f"]
[null,null,null,null,null,null,"l","i","l","i","a"]
[null,null,null,null,null,null,null,null,"o",null,"s"]
[null,null,null,null,null,null,"p",null,"w",null,"t"]
[null,null,null,null,null,"r","o","s","e",null,"e"]
[null,null,null,null,null,null,"p",null,"r",null,"r"]
[null,null,null,null,null,null,"p"]
[null,null,null,null,null,null,"y"]

{"sheet":"Результат","index":4,"n_rows":15,"n_cols":9,"rows_kept":15,"cut":false,"hidden":false,"merged":[]}
[]
[]
[]
[]
[]
[]
[]
[null,null,null,null,null,null,null,"Name"]
[null,null,null,null,null,null,null,"Class"]
[]
[]
[null,null,null,null,null,null,null,"Right",{"$f":"Анализ!F2","v":0}]
[]
[]
[null,null,null,null,null,null,null,"Mark",{"$f":"Анализ!G2","v":"Try again)"}]